fUSD/lending_fUSD_20250103
["ID","MTS","AMOUNT","RATE_DAILY","PERIOD"]
[347605415,1735945832423,-5464.26849754,0.00010979,2]
[347605416,1735945832433,-3461.54607945,0.00010979,2]
[347605417,1735945832443,-320.29915024,0.0001098,2]
[347605418,1735945832453,-251.47,0.0001098,2]
[347605419,1735945832464,-11981.9994126,0.0001098,2]
[347605420,1735945832475,-3461.54607945,0.00010981,2]
[347605421,1735945832484,-11981.9994126,0.00010981,2]
[347605422,1735945832493,-1730.77303972,0.00010982,2]
[347605423,1735945832504,-3347.5110471,0.00010982,2]
[347605424,1735945832516,-11981.9994126,0.00010982,2]
[347605425,1735945832525,-320.29915024,0.00010982,2]
[347605426,1735945832535,-1730.77303972,0.00010982,2]
[347605428,1735945832545,-5464.26849754,0.00010983,2]
[347605430,1735945832555,-1730.77303972,0.00010983,2]
[347605432,1735945832565,-5464.26849754,0.00010984,2]
[347605434,1735945832575,-3347.5110471,0.00010984,2]
[347605435,1735945832584,-55395.09433042,0.00010984,2]
[347605438,1735945832595,-55395.09433042,0.00010985,2]
[347605439,1735945832606,-300.0,0.00010985,2]
[347605440,1735945832615,-11981.9994126,0.00010985,2]
[347605441,1735945832627,-11981.9994126,0.00010986,2]
[347605442,1735945832636,-320.29915024,0.00010986,2]
[347605443,1735945832646,-200.0,0.00010986,2]
[347605444,1735945832661,-5464.26849754,0.00010986,2]
[347605445,1735945832678,-400.0,0.00010986,2]
[347605446,1735945832693,-3347.5110471,0.00010986,2]
[347605447,1735945832705,-3461.54607945,0.00010987,2]
[347605448,1735945832718,-1730.77303972,0.00010987,2]
[347605449,1735945832733,-1730.77303972,0.00010988,2]
[347605450,1735945832746,-1730.77303972,0.00010988,2]
[347605451,1735945832761,-320.29915024,0.00010989,2]
[347605452,1735945832775,-3461.54607945,0.0001099,2]
[347605453,1735945832788,-55395.09433042,0.00010991,2]
[347605454,1735945832799,-5464.26849754,0.00010991,2]
[347605455,1735945832813,-55395.09433042,0.00010992,2]
[347605456,1735945832827,-3347.5110471,0.00010993,2]
[347605457,1735945832841,-320.29915024,0.00010994,2]
[347605458,1735945832855,-3461.54607945,0.00010996,2]
[347605459,1735945832869,-200.0,0.00010997,2]
[347605460,1735945832883,-320.29915024,0.00010997,2]
[347605461,1735945832897,-55395.09433042,0.00010999,2]
[347605462,1735945832913,-600.0,0.00011,4]
[347605463,1735945832927,-550.0,0.00011,2]
[347605464,1735945832943,-370.28,0.0001104,2]
[347605465,1735945832958,-150.0,0.00011047,2]
[347605466,1735945832972,-150.0,0.00011047,2]
[347605467,1735945832987,-900.0,0.000111,4]
[347605468,1735945833005,-150.0,0.00011105,2]
[347605469,1735945833021,-150.0,0.00011163,2]
[347605470,1735945833036,-1200.0,0.000112,4]
[347605471,1735945833048,-150.0,0.00011222,2]
[347605472,1735945833061,-150.0,0.00011251,2]
[347605473,1735945833078,-152.0,0.00011272,3]
[347605474,1735945833092,-150.0,0.0001128,2]
[347605475,1735945833104,-162.89,0.00011281,2]
[347605476,1735945833116,-1500.0,0.000113,4]
[347605477,1735945833131,-150.0,0.00011339,2]
[347605478,1735945833148,-167.43,0.00011363,2]
[347605479,1735945833163,-150.0,0.00011397,2]
[347605480,1735945833175,-300.0,0.000114,4]
[347605481,1735945833187,-150.0,0.00011456,2]
[347605482,1735945833200,-150.0,0.00011456,2]
[347605483,1735945833214,-317.55,0.00011479,2]
[347605484,1735945833234,-151.37,0.00011479,2]
[347605485,1735945833248,-150.0,0.00011479,2]
[347605486,1735945833261,-300.0,0.000115,4]
[347605487,1735945833275,-150.0,0.00011514,2]
[347605488,1735945833289,-150.0,0.00011573,2]
[347605489,1735945833303,-300.0,0.000116,4]
[347605490,1735945833317,-150.0,0.00011631,2]
[347605491,1735945833331,-150.0,0.0001166,2]
[347605492,1735945833345,-282.526,0.0001168,2]
[347605493,1735945833359,-150.0,0.00011689,2]
[347605494,1735945833373,-300.0,0.000117,4]
[347605495,1735945833387,-150.0,0.00011748,2]
[347605496,1735945833402,-5512.0,0.0001176,2]
[347605497,1735945833415,-502.36,0.00011798,2]
[347605498,1735945833429,-300.0,0.000118,4]
[347605499,1735945833442,-150.0,0.00011806,2]
[347605500,1735945833455,-200.0,0.00011838,2]
[347605501,1735945833468,-150.0,0.00011865,2]
[347605502,1735945833481,-150.0,0.00011865,2]
[347605503,1735945833493,-780.72617328,0.00011884,2]
[347605504,1735945833507,-37233.4511,0.00011885,2]
[347605505,1735945833520,-1739.903,0.00011885,2]
[347605506,1735945833533,-2500.0,0.00011885,2]
[347605507,1735945833546,-197.58619199,0.00011886,2]
[347605508,1735945833559,-780.72617315,0.00011901,2]
[347605509,1735945833571,-780.72617315,0.00011917,2]
[347605510,1735945833583,-150.0,0.00011923,2]
[347605511,1735945833596,-780.72617315,0.00011934,2]
[347605512,1735945833608,-780.72617315,0.00011951,2]
[347605513,1735945833621,-1000.0,0.00011964,2]
[347605514,1735945833634,-780.72617315,0.00011967,2]
[347605515,1735945833647,-150.0,0.00011982,2]
[347605516,1735945833660,-780.72617315,0.00011984,2]
[347605517,1735945833672,-500.0,0.00011984,2]
[347605518,1735945833685,-500.0,0.00011984,2]
[347605519,1735945833697,-500.0,0.00011984,2]
[347605520,1735945833711,-500.0,0.00011984,2]
[347605521,1735945833724,-500.0,0.00011984,2]
[347605522,1735945833736,-500.0,0.00011984,2]
[347605523,1735945833748,-655.69,0.00011984,2]
[347605524,1735945833761,-500.0,0.00011984,2]
[347605525,1735945833773,-500.0,0.00011984,2]
[347605526,1735945833786,-500.0,0.00011984,2]
[347605527,1735945833799,-500.0,0.00011984,2]
[347605528,1735945833811,-500.0,0.00011984,2]
[347605529,1735945833824,-500.0,0.00011984,2]
[347605530,1735945833837,-500.0,0.00011984,2]
[347605531,1735945833849,-500.0,0.00011984,2]
[347605532,1735945833863,-500.0,0.00011984,2]
[347605533,1735945833877,-500.0,0.00011984,2]
[347605534,1735945833890,-500.0,0.00011984,2]
[347605535,1735945833903,-627.29,0.00011984,2]
[347605536,1735945833916,-500.0,0.00011984,2]
[347605537,1735945833929,-500.0,0.00011984,2]
[347605538,1735945833943,-500.0,0.00011984,2]
[347605539,1735945833957,-500.0,0.00011984,2]
[347605540,1735945833969,-578.01,0.00011984,2]
[347605541,1735945833981,-500.0,0.00011984,2]
[347605542,1735945833996,-500.0,0.00011984,2]
[347605543,1735945834009,-500.0,0.00011984,2]
[347605544,1735945834023,-500.0,0.00011984,2]
[347605545,1735945834036,-500.0,0.00011984,2]
[347605546,1735945834049,-500.0,0.00011984,2]
[347605547,1735945834062,-500.0,0.00011984,2]
[347605548,1735945834074,-500.0,0.00011984,2]
[347605549,1735945834087,-500.0,0.00011984,2]
[347605550,1735945834100,-500.0,0.00011984,2]
[347605551,1735945834112,-593.74,0.00011984,2]
[347605552,1735945834126,-500.0,0.00011984,2]
[347605553,1735945834139,-500.0,0.00011984,2]
[347605554,1735945834152,-500.0,0.00011984,2]
[347605555,1735945834164,-500.0,0.00011984,2]
[347605556,1735945834177,-500.0,0.00011984,2]
[347605557,1735945834190,-500.0,0.00011984,2]
[347605558,1735945834203,-500.0,0.00011984,2]
[347605559,1735945834216,-500.0,0.00011984,2]
[347605560,1735945834228,-500.0,0.00011984,2]
[347605561,1735945834242,-500.0,0.00011984,2]
[347605562,1735945834255,-500.0,0.00011984,2]
[347605563,1735945834269,-500.0,0.00011984,2]
[347605564,1735945834282,-500.0,0.00011984,2]
[347605565,1735945834296,-500.0,0.00011984,2]
[347605566,1735945834309,-500.0,0.00011984,2]
[347605567,1735945834323,-500.0,0.00011984,2]
[347605568,1735945834335,-500.0,0.00011984,2]
[347605569,1735945834348,-500.0,0.00011984,2]
[347605570,1735945834361,-500.0,0.00011984,2]
[347605571,1735945834376,-500.0,0.00011984,2]
[347605572,1735945834388,-500.0,0.00011984,2]
[347605573,1735945834397,-593.0,0.00011984,2]
[347605574,1735945834407,-500.0,0.00011984,2]
[347605575,1735945834417,-500.0,0.00011984,2]
[347605576,1735945834427,-500.0,0.00011984,2]
[347605577,1735945834438,-506.29,0.00011984,2]
[347605578,1735945834449,-500.0,0.00011984,2]
[347605579,1735945834731,-500.0,0.00011984,2]
[347605580,1735945834746,-500.0,0.00011984,2]
[347605581,1735945834755,-500.0,0.00011984,2]
[347605582,1735945834765,-500.0,0.00011984,2]
[347605583,1735945834775,-500.0,0.00011984,2]
[347605584,1735945834785,-500.0,0.00011984,2]
[347605585,1735945834794,-610.45,0.00011984,2]
[347605586,1735945834804,-500.0,0.00011984,2]
[347605587,1735945834814,-609.08,0.00011984,2]
[347605588,1735945834824,-500.0,0.00011984,2]
[347605589,1735945834833,-500.0,0.00011984,2]
[347605590,1735945834842,-500.0,0.00011984,2]
[347605591,1735945834852,-608.65,0.00011984,2]
[347605592,1735945834861,-500.0,0.00011984,2]
[347605593,1735945834871,-500.0,0.00011984,2]
[347605594,1735945834880,-583.47,0.00011984,2]
[347605595,1735945834890,-500.0,0.00011984,2]
[347605596,1735945834899,-500.0,0.00011984,2]
[347605597,1735945834908,-500.0,0.00011984,2]
[347605598,1735945834918,-500.0,0.00011984,2]
[347605599,1735945834927,-500.0,0.00011984,2]
[347605600,1735945834936,-618.08,0.00011984,2]
[347605601,1735945834948,-500.0,0.00011984,2]
[347605602,1735945834958,-500.0,0.00011984,2]
[347605603,1735945834967,-500.0,0.00011984,2]
[347605604,1735945834977,-500.0,0.00011984,2]
[347605605,1735945834987,-500.0,0.00011984,2]
[347605606,1735945834997,-500.0,0.00011984,2]
[347605607,1735945835010,-500.0,0.00011984,2]
[347605608,1735945835020,-500.0,0.00011984,2]
[347605609,1735945835030,-500.0,0.00011984,2]
[347605610,1735945835040,-500.0,0.00011984,2]
[347605611,1735945835050,-500.0,0.00011984,2]
[347605612,1735945835059,-500.0,0.00011984,2]
[347605613,1735945835069,-500.0,0.00011984,2]
[347605614,1735945835079,-500.0,0.00011984,2]
[347605615,1735945835088,-500.0,0.00011984,2]
[347605616,1735945835097,-1084.34,0.00011984,2]
[347605617,1735945835107,-519.15,0.00011984,2]
[347605618,1735945835117,-500.0,0.00011984,2]
[347605619,1735945835127,-770.65,0.00011984,2]
[347605620,1735945835137,-500.0,0.00011984,2]
[347605621,1735945835147,-724.84,0.00011984,2]
[347605622,1735945835157,-500.0,0.00011984,2]
[347605623,1735945835167,-958.07,0.00011984,2]
[347605624,1735945835177,-629.32,0.00011984,2]
[347605625,1735945835186,-500.0,0.00011984,2]
[347605626,1735945835197,-500.0,0.00011984,2]
[347605627,1735945835207,-500.0,0.00011984,2]
[347605628,1735945835216,-500.0,0.00011984,2]
[347605629,1735945835226,-500.0,0.00011984,2]
[347605630,1735945835235,-500.0,0.00011984,2]
[347605631,1735945835245,-500.0,0.00011984,2]
[347605632,1735945835254,-500.0,0.00011984,2]
[347605633,1735945835264,-500.0,0.00011984,2]
[347605634,1735945835273,-500.0,0.00011984,2]
[347605635,1735945835283,-530.83,0.00011984,2]
[347605636,1735945835292,-1003.93,0.00011984,2]
[347605637,1735945835302,-516.24,0.00011984,2]
[347605638,1735945835312,-500.0,0.00011984,2]
[347605639,1735945835321,-500.0,0.00011984,2]
[347605640,1735945835331,-3997.15,0.00011984,2]
[347605641,1735945835340,-500.0,0.00011984,2]
[347605642,1735945835350,-500.0,0.00011984,2]
[347605643,1735945835360,-500.0,0.00011984,2]
[347605644,1735945835369,-500.0,0.00011984,2]
[347605645,1735945835379,-500.0,0.00011984,2]
[347605646,1735945835389,-500.0,0.00011984,2]
[347605647,1735945835398,-500.0,0.00011984,2]
[347605648,1735945835407,-625.04165177,0.00011984,2]
[347605649,1735945835417,-500.0,0.00011984,2]
[347605650,1735945835427,-500.0,0.00011984,2]
[347605651,1735945835436,-500.0,0.00011984,2]
[347605652,1735945835446,-714.7,0.00011984,2]
[347605653,1735945835455,-646.6,0.00011984,2]
[347605654,1735945835465,-539.51,0.00011984,2]
[347605655,1735945835474,-500.0,0.00011984,2]
[347605656,1735945835483,-500.0,0.00011984,2]
[347605657,1735945835493,-500.0,0.00011984,2]
[347605658,1735945835503,-500.0,0.00011984,2]
[347605659,1735945835512,-690.74,0.00011984,2]
[347605660,1735945835522,-500.0,0.00011984,2]
[347605661,1735945835531,-500.0,0.00011984,2]
[347605662,1735945835540,-500.0,0.00011984,2]
[347605663,1735945835550,-500.0,0.00011984,2]
[347605664,1735945835559,-500.0,0.00011984,2]
[347605665,1735945835569,-500.0,0.00011984,2]
[347605666,1735945835579,-2387.49,0.00011984,2]
[347605667,1735945835589,-1133.51,0.00011984,2]
[347605668,1735945835599,-500.0,0.00011984,2]
[347605669,1735945835609,-707.23,0.00011984,2]
[347605670,1735945835619,-500.0,0.00011984,2]
[347605671,1735945835630,-500.0,0.00011984,2]
[347605672,1735945835639,-500.0,0.00011984,2]
[347605673,1735945835649,-1319.32,0.00011984,2]
[347605674,1735945835659,-500.0,0.00011984,2]
[347605675,1735945835668,-500.0,0.00011984,2]
[347605676,1735945835678,-686.2,0.00011984,2]
[347605677,1735945835688,-500.0,0.00011984,2]
[347605678,1735945835698,-1116.98,0.00011984,2]
[347605679,1735945835708,-500.0,0.00011984,2]
[347605680,1735945835718,-827.29,0.00011984,2]
[347605681,1735945835728,-500.0,0.00011984,2]
[347605682,1735945835737,-500.0,0.00011984,2]
[347605683,1735945835746,-500.0,0.00011984,2]
[347605684,1735945835756,-1295.48,0.00011984,2]
[347605685,1735945835766,-1022.71,0.00011984,2]
[347605686,1735945835775,-500.0,0.00011984,2]
[347605687,1735945835784,-599.59,0.00011984,2]
[347605688,1735945835794,-723.93,0.00011984,2]
[347605689,1735945835803,-632.31,0.00011984,2]
[347605690,1735945835813,-632.31,0.00011984,2]
[347605691,1735945835822,-500.0,0.00011984,2]
[347605692,1735945835831,-500.0,0.00011984,2]
[347605693,1735945835840,-733.41,0.00011984,2]
[347605694,1735945835850,-550.43,0.00011984,2]
[347605695,1735945835859,-602.85,0.00011984,2]
[347605696,1735945835868,-532.3,0.00011984,2]
[347605697,1735945835879,-671.24,0.00011984,2]
[347605698,1735945835888,-500.0,0.00011984,2]
[347605699,1735945835898,-500.0,0.00011984,2]
[347605700,1735945835907,-500.0,0.00011984,2]
[347605701,1735945835917,-500.0,0.00011984,2]
[347605702,1735945835926,-500.0,0.00011984,2]
[347605703,1735945835936,-500.0,0.00011984,2]
[347605704,1735945835948,-796.52,0.00011984,2]
[347605705,1735945835958,-500.0,0.00011984,2]
[347605706,1735945835967,-500.0,0.00011984,2]
[347605707,1735945835977,-254.45944867,0.00011984,2]
[347605708,1735945835986,-500.0,0.00011984,2]
[347605709,1735945835998,-500.0,0.00011984,2]
[347605710,1735945836007,-604.65,0.00011984,2]
[347605711,1735945836018,-1721.47,0.00011984,2]
[347605712,1735945836027,-500.0,0.00011984,2]
[347605713,1735945836038,-500.0,0.00011984,2]
[347605714,1735945836048,-739.87,0.00011984,2]
[347605715,1735945836057,-500.0,0.00011984,2]
[347605716,1735945836066,-500.0,0.00011984,2]
[347605717,1735945836076,-500.0,0.00011984,2]
[347605718,1735945836086,-500.0,0.00011984,2]
[347605719,1735945836096,-1259.16,0.00011984,2]
[347605720,1735945836105,-500.0,0.00011985,2]
[347605721,1735945836115,-500.0,0.00011985,2]
[347605722,1735945836125,-500.0,0.00011985,2]
[347605723,1735945836135,-500.0,0.00011985,2]
[347605724,1735945836145,-500.0,0.00011985,2]
[347605725,1735945836155,-500.0,0.00011985,2]
[347605726,1735945836165,-500.0,0.00011985,2]
[347605727,1735945836174,-500.0,0.00011985,2]
[347605728,1735945836186,-441.20845842,0.00011985,2]
[347605729,1735945836198,-500.0,0.00011985,2]
[347605730,1735945836208,-500.0,0.00011985,2]
[347605731,1735945836217,-597.4,0.00011985,2]
[347605732,1735945836227,-645.74,0.00011985,2]
[347605733,1735945836237,-500.0,0.00011985,2]
[347605734,1735945836246,-500.0,0.00011985,2]
[347605735,1735945836255,-500.0,0.00011985,2]
[347605736,1735945836265,-500.0,0.00011985,2]
[347605737,1735945836274,-500.0,0.00011985,2]
[347605738,1735945836284,-500.0,0.00011985,2]
[347605739,1735945836294,-500.0,0.00011985,2]
[347605740,1735945836304,-500.0,0.00011985,2]
[347605741,1735945836314,-500.0,0.00011985,2]
[347605742,1735945836323,-500.0,0.00011985,2]
[347605743,1735945836333,-500.0,0.00011985,2]
[347605744,1735945836343,-500.0,0.00011985,2]
[347605745,1735945836352,-500.0,0.00011985,2]
[347605746,1735945836361,-500.0,0.00011985,2]
[347605747,1735945836371,-500.0,0.00011985,2]
[347605748,1735945836381,-500.0,0.00011985,2]
[347605749,1735945836390,-500.0,0.00011985,2]
[347605750,1735945836400,-500.0,0.00011985,2]
[347605751,1735945836410,-500.0,0.00011985,2]
[347605752,1735945836420,-500.0,0.00011985,2]
[347605753,1735945836429,-500.0,0.00011985,2]
[347605754,1735945836438,-500.0,0.00011985,2]
[347605755,1735945836448,-500.0,0.00011985,2]
[347605756,1735945836458,-500.0,0.00011985,2]
[347605757,1735945836467,-500.0,0.00011985,2]
[347605758,1735945836479,-500.0,0.00011985,2]
[347605759,1735945836489,-500.0,0.00011985,2]
[347605760,1735945836501,-500.0,0.00011985,2]
[347605761,1735945836511,-500.0,0.00011985,2]
[347605762,1735945836520,-500.0,0.00011985,2]
[347605763,1735945836530,-500.0,0.00011985,2]
[347605764,1735945836540,-500.0,0.00011985,2]
[347605765,1735945836550,-500.0,0.00011985,2]
[347605766,1735945836559,-500.0,0.00011985,2]
[347605767,1735945836568,-500.0,0.00011985,2]
[347605768,1735945836578,-500.0,0.00011985,2]
[347605769,1735945836588,-500.0,0.00011985,2]
[347605770,1735945836597,-500.0,0.00011985,2]
[347605771,1735945836606,-500.0,0.00011985,2]
[347605772,1735945836615,-500.0,0.00011985,2]
[347605773,1735945836627,-500.0,0.00011985,2]
[347605774,1735945836636,-503.45,0.00011985,2]
[347605775,1735945836646,-500.0,0.00011985,2]
[347605776,1735945836656,-500.0,0.00011985,2]
[347605777,1735945836665,-500.0,0.00011985,2]
[347605778,1735945836675,-500.0,0.00011985,2]
[347605779,1735945836685,-500.0,0.00011985,2]
[347605780,1735945836695,-500.0,0.00011985,2]
[347605781,1735945836704,-500.0,0.00011985,2]
[347605782,1735945836714,-500.0,0.00011985,2]
[347605783,1735945836724,-500.0,0.00011985,2]
[347605784,1735945836734,-500.0,0.00011985,2]
[347605785,1735945836744,-500.0,0.00011985,2]
[347605786,1735945836754,-500.0,0.00011985,2]
[347605787,1735945836765,-607.43,0.00011985,2]
[347605788,1735945836774,-500.0,0.00011985,2]
[347605789,1735945836783,-628.5,0.00011985,2]
[347605790,1735945836793,-500.0,0.00011985,2]
[347605791,1735945836803,-500.0,0.00011985,2]
[347605792,1735945836812,-500.0,0.00011985,2]
[347605793,1735945836821,-500.0,0.00011985,2]
[347605794,1735945836831,-500.0,0.00011985,2]
[347605795,1735945836840,-500.0,0.00011985,2]
[347605796,1735945836849,-500.0,0.00011985,2]
[347605797,1735945836859,-500.0,0.00011985,2]
[347605798,1735945836868,-500.0,0.00011985,2]
[347605799,1735945836879,-500.0,0.00011985,2]
[347605800,1735945836888,-176.02578641,0.00011985,2]
[347605801,1735945836898,-500.0,0.00011985,2]
[347605802,1735945836907,-500.0,0.00011985,2]
[347605803,1735945836918,-569.62,0.00011985,2]
[347605804,1735945836927,-500.0,0.00011985,2]
[347605805,1735945836937,-500.0,0.00011985,2]
[347605806,1735945836951,-500.0,0.00011985,2]
[347605807,1735945836960,-500.0,0.00011985,2]
[347605808,1735945836970,-500.0,0.00011985,2]
[347605809,1735945836979,-500.0,0.00011985,2]
[347605810,1735945836990,-500.0,0.00011985,2]
[347605811,1735945836999,-500.0,0.00011985,2]
[347605812,1735945837009,-500.0,0.00011985,2]
[347605813,1735945837019,-501.46,0.00011985,2]
[347605814,1735945837031,-500.0,0.00011985,2]
[347605815,1735945837041,-622.82,0.00011985,2]
[347605816,1735945837050,-500.0,0.00011985,2]
[347605817,1735945837060,-500.0,0.00011985,2]
[347605818,1735945837069,-500.0,0.00011985,2]
[347605819,1735945837078,-500.0,0.00011985,2]
[347605820,1735945837088,-500.0,0.00011985,2]
[347605821,1735945837097,-555.49,0.00011985,2]
[347605822,1735945837106,-331.30582078,0.00011985,2]
[347605823,1735945837116,-500.0,0.00011985,2]
[347605824,1735945837126,-500.0,0.00011985,2]
[347605825,1735945837136,-500.0,0.00011985,2]
[347605826,1735945837145,-500.0,0.00011985,2]
[347605827,1735945837154,-500.0,0.00011985,2]
[347605828,1735945837164,-595.6,0.00011985,2]
[347605829,1735945837173,-500.0,0.00011985,2]
[347605830,1735945837182,-577.19,0.00011985,2]
[347605831,1735945837191,-500.0,0.00011985,2]
[347605832,1735945837202,-500.0,0.00011985,2]
[347605833,1735945837211,-500.0,0.00011985,2]
[347605834,1735945837221,-500.0,0.00011985,2]
[347605835,1735945837230,-500.0,0.00011985,2]
[347605836,1735945837239,-500.0,0.00011985,2]
[347605837,1735945837248,-500.0,0.00011985,2]
[347605838,1735945837258,-500.0,0.00011985,2]
[347605839,1735945837267,-500.0,0.00011985,2]
[347605840,1735945837276,-585.37,0.00011985,2]
[347605841,1735945837285,-500.0,0.00011985,2]
[347605842,1735945837294,-500.0,0.00011985,2]
[347605843,1735945837304,-500.0,0.00011985,2]
[347605844,1735945837313,-500.0,0.00011985,2]
[347605845,1735945837323,-500.0,0.00011985,2]
[347605846,1735945837333,-500.0,0.00011985,2]
[347605847,1735945837342,-161.28958577,0.00011985,2]
[347605848,1735945837351,-500.0,0.00011985,2]
[347605849,1735945837361,-500.0,0.00011985,2]
[347605850,1735945837371,-150.0,0.00011985,2]
[347605851,1735945837381,-500.0,0.00011985,2]
[347605852,1735945837391,-500.0,0.00011985,2]
[347605853,1735945837401,-580.57,0.00011985,2]
[347605854,1735945837410,-515.51,0.00011985,2]
[347605855,1735945837420,-500.0,0.00011985,2]
[347605856,1735945837430,-500.0,0.00011985,2]
[347605857,1735945837439,-500.0,0.00011985,2]
[347605858,1735945837449,-500.0,0.00011985,2]
[347605859,1735945837458,-500.0,0.00011985,2]
[347605860,1735945837467,-947.99,0.00011985,2]
[347605861,1735945837477,-500.0,0.00011985,2]
[347605862,1735945837486,-500.0,0.00011985,2]
[347605863,1735945837496,-500.0,0.00011985,2]
[347605864,1735945837505,-500.0,0.00011985,2]
[347605865,1735945837515,-500.0,0.00011985,2]
[347605866,1735945837524,-500.0,0.00011985,2]
[347605867,1735945837534,-500.0,0.00011985,2]
[347605868,1735945837543,-500.0,0.00011985,2]
[347605869,1735945837553,-500.0,0.00011985,2]
[347605870,1735945837564,-500.0,0.00011985,2]
[347605871,1735945837575,-500.0,0.00011985,2]
[347605872,1735945837584,-631.63,0.00011985,2]
[347605873,1735945837594,-533.25170867,0.00011985,2]
[347605874,1735945837604,-500.0,0.00011985,2]
[347605875,1735945837614,-500.0,0.00011985,2]
[347605876,1735945837624,-1324.88,0.00011985,2]
[347605877,1735945837634,-540.98,0.00011985,2]
[347605878,1735945837643,-1358.47,0.00011985,2]
[347605879,1735945837653,-3532.73,0.00011985,2]
[347605880,1735945837822,-1506.37,0.00011985,2]
[347605881,1735945837832,-3628.84,0.00011985,2]
[347605882,1735945837842,-1621.33,0.00011985,2]
[347605883,1735945837851,-2000.51,0.00011985,2]
[347605884,1735945837861,-1092.65,0.00011985,2]
[347605885,1735945837873,-698.28,0.00011985,2]
[347605886,1735945837883,-500.0,0.00011985,2]
[347605887,1735945837893,-500.0,0.00011986,2]
[347605888,1735945837902,-615.26,0.00011986,2]
[347605889,1735945837912,-150.0,0.00011987,2]
[347605890,1735945837921,-2854.2,0.00011988,5]
[347605891,1735945837931,-547.82,0.00011998,2]
[347605892,1735945837942,-4512.78,0.00011998,2]
[347605893,1735945837954,-500.0,0.00011998,2]
[347605894,1735945837964,-618.06,0.00011998,2]
[347605895,1735945837973,-1404.33,0.00011998,2]
[347605896,1735945837984,-500.0,0.00011999,2]
[347605897,1735945837995,-500.0,0.00011999,2]
[347605898,1735945838004,-500.0,0.00011999,2]
[347605899,1735945838015,-500.0,0.00011999,2]
[347605900,1735945838026,-500.0,0.00011999,2]
[347605901,1735945838036,-561.5,0.00011999,2]
[347605902,1735945838046,-500.0,0.00011999,2]
[347605903,1735945838055,-500.0,0.00011999,2]
[347605904,1735945838065,-500.0,0.00011999,2]
[347605905,1735945838075,-500.0,0.00011999,2]
[347605906,1735945838084,-500.0,0.00011999,2]
[347605907,1735945838094,-500.0,0.00011999,2]
[347605908,1735945838104,-500.0,0.00011999,2]
[347605909,1735945838113,-500.0,0.00011999,2]
[347605910,1735945838124,-500.0,0.00011999,2]
[347605911,1735945838133,-500.0,0.00011999,2]
[347605912,1735945838143,-500.0,0.00011999,2]
[347605913,1735945838152,-500.0,0.00011999,2]
[347605914,1735945838161,-500.0,0.00011999,2]
[347605915,1735945838171,-500.0,0.00011999,2]
[347605916,1735945838181,-500.0,0.00011999,2]
[347605917,1735945838191,-500.0,0.00011999,2]
[347605918,1735945838200,-500.0,0.00011999,2]
[347605919,1735945838210,-501.66,0.00011999,2]
[347605920,1735945838220,-500.0,0.00011999,2]